[Event "Titled Tuesday Blitz August 23 Early 2022"]
[White "Bluebaum, Matthias"]
[Black "Shirov, Alexei"]
[WhiteFideId "24651516"]
[BlackFideId "2209390"]
[WhiteElo "2603"]
[BlackElo "2678"]
[Result "1-0"]
[Round "05"]
[TimeControl "180+1"]
[Date "2022.08.23"]
[WhiteClock "0:00:50"]
[BlackClock "0:00:30"]

1. d4 {[%clk 0:03:00]}  d5 {[%clk 0:02:59]} 2. c4 {[%clk 0:03:01]}  c6 {[%clk 0:02:59]} 3. Nc3 {[%clk 0:03:01]}  Nf6 {[%clk 0:02:59]} 4. Nf3 {[%clk 0:03:02]}  e6 {[%clk 0:02:58]} 5. Qc2 {[%clk 0:03:03]}  dxc4 {[%clk 0:02:56]} 6. e3 {[%clk 0:03:03]}  b5 {[%clk 0:02:55]} 7. e4 {[%clk 0:02:59]}  Bb7 {[%clk 0:02:47]} 8. Be2 {[%clk 0:02:59]}  Nbd7 {[%clk 0:02:45]} 9. O-O {[%clk 0:03:00]}  Be7 {[%clk 0:02:44]} 10. b3 {[%clk 0:02:55]}  cxb3 {[%clk 0:02:43]} 11. axb3 {[%clk 0:02:56]}  a6 {[%clk 0:02:40]} 12. e5 {[%clk 0:02:47]}  Nd5 {[%clk 0:02:39]} 13. Nxd5 {[%clk 0:02:47]}  cxd5 {[%clk 0:02:36]} 14. Bd2 {[%clk 0:02:48]}  O-O {[%clk 0:02:30]} 15. Ba5 {[%clk 0:02:46]}  Qc8 {[%clk 0:02:30]} 16. Qd2 {[%clk 0:02:46]}  Bc6 {[%clk 0:02:18]} 17. Rfc1 {[%clk 0:02:38]}  Qb7 {[%clk 0:02:18]} 18. Bb4 {[%clk 0:02:38]}  Bxb4 {[%clk 0:02:15]} 19. Qxb4 {[%clk 0:02:39]}  Rfc8 {[%clk 0:02:15]} 20. h4 {[%clk 0:02:38]}  Nf8 {[%clk 0:02:14]} 21. Ne1 {[%clk 0:02:31]}  Qb6 {[%clk 0:02:09]} 22. Nd3 {[%clk 0:02:31]}  a5 {[%clk 0:02:08]} 23. Qc5 {[%clk 0:02:30]}  Nd7 {[%clk 0:01:59]} 24. Qd6 {[%clk 0:02:06]}  Qxd4 {[%clk 0:01:58]} 25. Ra2 {[%clk 0:02:06]}  Qb6 {[%clk 0:01:45]} 26. Rac2 {[%clk 0:02:05]}  Nb8 {[%clk 0:01:44]} 27. Nf4 {[%clk 0:01:28]}  Qd8 {[%clk 0:01:39]} 28. Bxb5 {[%clk 0:01:21]}  Qxh4 {[%clk 0:01:02]} 29. g3 {[%clk 0:01:20]}  Qg5 {[%clk 0:00:54]} 30. Nxe6 {[%clk 0:01:03]}  Qh6 {[%clk 0:00:47]} 31. Nf4 {[%clk 0:00:55]}  Qxd6 {[%clk 0:00:32]} 32. exd6 {[%clk 0:00:56]}  Rd8 {[%clk 0:00:31]} 33. Bxc6 {[%clk 0:00:56]}  Ra6 {[%clk 0:00:30]} 34. d7 {[%clk 0:00:50]} 1-0


[Site "https://www.chess.com"]

[Event "Titled Tuesday Blitz August 23 Early 2022"]
[White "Deac, Bogdan-Daniel"]
[Black "Goryachkina, Aleksandra"]
[WhiteFideId "1226380"]
[BlackFideId "4147103"]
[WhiteElo "2648"]
[BlackElo "2426"]
[Result "1-0"]
[Round "05"]
[TimeControl "180+1"]
[Date "2022.08.23"]
[WhiteClock "0:00:03"]
[BlackClock "0:00:01"]

1. Nf3 {[%clk 0:03:00]}  d5 {[%clk 0:02:59]} 2. g3 {[%clk 0:03:01]}  Nc6 {[%clk 0:02:58]} 3. d4 {[%clk 0:03:00]}  Bf5 {[%clk 0:02:57]} 4. c3 {[%clk 0:02:54]}  e6 {[%clk 0:02:55]} 5. Bg2 {[%clk 0:02:52]}  Nf6 {[%clk 0:02:53]} 6. Bg5 {[%clk 0:02:50]}  Be7 {[%clk 0:02:50]} 7. O-O {[%clk 0:02:49]}  h6 {[%clk 0:02:49]} 8. Bxf6 {[%clk 0:02:49]}  Bxf6 {[%clk 0:02:49]} 9. Nfd2 {[%clk 0:02:44]}  O-O {[%clk 0:02:37]} 10. e4 {[%clk 0:02:43]}  dxe4 {[%clk 0:02:26]} 11. Nxe4 {[%clk 0:02:44]}  Bxe4 {[%clk 0:02:19]} 12. Bxe4 {[%clk 0:02:43]}  Ne7 {[%clk 0:02:13]} 13. Qf3 {[%clk 0:01:48]}  c6 {[%clk 0:02:04]} 14. Rd1 {[%clk 0:01:48]}  Nd5 {[%clk 0:01:32]} 15. h4 {[%clk 0:01:25]}  Be7 {[%clk 0:01:25]} 16. Nd2 {[%clk 0:01:13]}  Nf6 {[%clk 0:00:55]} 17. Bc2 {[%clk 0:01:12]}  Qd5 {[%clk 0:00:50]} 18. Qe2 {[%clk 0:01:12]}  Qh5 {[%clk 0:00:45]} 19. Nf3 {[%clk 0:01:02]}  Rad8 {[%clk 0:00:43]} 20. c4 {[%clk 0:00:47]}  Bd6 {[%clk 0:00:33]} 21. Kg2 {[%clk 0:00:35]}  c5 {[%clk 0:00:18]} 22. dxc5 {[%clk 0:00:20]}  Bxc5 {[%clk 0:00:17]} 23. Rxd8 {[%clk 0:00:19]}  Rxd8 {[%clk 0:00:18]} 24. Rd1 {[%clk 0:00:19]}  Rxd1 {[%clk 0:00:16]} 25. Qxd1 {[%clk 0:00:19]}  g6 {[%clk 0:00:15]} 26. Qd8+ {[%clk 0:00:14]}  Kg7 {[%clk 0:00:15]} 27. Qc7 {[%clk 0:00:14]}  Ng4 {[%clk 0:00:11]} 28. Ba4 {[%clk 0:00:11]}  Nxf2 {[%clk 0:00:09]} 29. Ne5 {[%clk 0:00:05]}  Qf5 {[%clk 0:00:04]} 30. Qxc5 {[%clk 0:00:03]}  Ng4 {[%clk 0:00:03]} 31. Nd7 {[%clk 0:00:02]}  Qe4+ {[%clk 0:00:03]} 32. Kf1 {[%clk 0:00:03]}  Qd3+ {[%clk 0:00:02]} 33. Ke1 {[%clk 0:00:03]}  Qe4+ {[%clk 0:00:02]} 34. Kd2 {[%clk 0:00:03]}  Qg2+ {[%clk 0:00:01]} 35. Kc3 {[%clk 0:00:03]}  Qxg3+ {[%clk 0:00:02]} 36. Kb4 {[%clk 0:00:03]}  Qc7 {[%clk 0:00:01]} 37. Qxc7 {[%clk 0:00:03]} 1-0


[Site "https://www.chess.com"]

[Event "Titled Tuesday Blitz August 23 Early 2022"]
[White "Gholami Orimi, Mahdi"]
[Black "Nasuta, Grzegorz"]
[WhiteFideId "12558486"]
[BlackFideId "1141686"]
[WhiteElo "2354"]
[BlackElo "2354"]
[Result "1-0"]
[Round "05"]
[TimeControl "180+1"]
[Date "2022.08.23"]
[WhiteClock "0:00:10"]
[BlackClock "0:00:03"]

1. d4 {[%clk 0:03:00]}  d5 {[%clk 0:02:57]} 2. c4 {[%clk 0:03:00]}  c6 {[%clk 0:02:58]} 3. Nf3 {[%clk 0:03:00]}  Nf6 {[%clk 0:02:58]} 4. g3 {[%clk 0:03:00]}  Bf5 {[%clk 0:02:57]} 5. Nc3 {[%clk 0:02:59]}  e6 {[%clk 0:02:57]} 6. Qb3 {[%clk 0:02:59]}  Qb6 {[%clk 0:02:56]} 7. c5 {[%clk 0:02:59]}  Qxb3 {[%clk 0:02:56]} 8. axb3 {[%clk 0:03:00]}  h6 {[%clk 0:02:56]} 9. b4 {[%clk 0:03:00]}  Be7 {[%clk 0:02:54]} 10. b5 {[%clk 0:02:54]}  O-O {[%clk 0:02:33]} 11. e3 {[%clk 0:02:14]}  cxb5 {[%clk 0:02:33]} 12. Bxb5 {[%clk 0:02:11]}  a6 {[%clk 0:02:25]} 13. Ba4 {[%clk 0:02:07]}  Nfd7 {[%clk 0:02:20]} 14. b4 {[%clk 0:02:02]}  Rc8 {[%clk 0:02:14]} 15. Ke2 {[%clk 0:01:53]}  b6 {[%clk 0:02:14]} 16. Bd2 {[%clk 0:01:48]}  a5 {[%clk 0:02:13]} 17. Nb5 {[%clk 0:01:20]}  axb4 {[%clk 0:02:11]} 18. Nd6 {[%clk 0:01:20]}  Bxd6 {[%clk 0:02:04]} 19. cxd6 {[%clk 0:01:21]}  b5 {[%clk 0:01:36]} 20. Bb3 {[%clk 0:01:05]}  Nc6 {[%clk 0:01:30]} 21. Rxa8 {[%clk 0:00:59]}  Rxa8 {[%clk 0:01:31]} 22. Rc1 {[%clk 0:00:59]}  Ra6 {[%clk 0:01:32]} 23. Ne5 {[%clk 0:00:46]}  Ncxe5 {[%clk 0:01:19]} 24. dxe5 {[%clk 0:00:42]}  Nxe5 {[%clk 0:01:20]} 25. Rc8+ {[%clk 0:00:41]}  Kh7 {[%clk 0:01:20]} 26. Bxb4 {[%clk 0:00:42]}  Bd3+ {[%clk 0:01:14]} 27. Kd2 {[%clk 0:00:37]}  Bc4 {[%clk 0:01:14]} 28. Bc2+ {[%clk 0:00:31]}  f5 {[%clk 0:01:06]} 29. f4 {[%clk 0:00:31]}  Nd7 {[%clk 0:01:06]} 30. Rc7 {[%clk 0:00:29]}  Nf6 {[%clk 0:00:54]} 31. d7 {[%clk 0:00:29]}  Nxd7 {[%clk 0:00:23]} 32. Rxd7 {[%clk 0:00:30]}  Ra1 {[%clk 0:00:15]} 33. g4 {[%clk 0:00:19]}  Rh1 {[%clk 0:00:04]} 34. gxf5 {[%clk 0:00:16]}  Rxh2+ {[%clk 0:00:04]} 35. Kc3 {[%clk 0:00:16]}  exf5 {[%clk 0:00:04]} 36. Bxf5+ {[%clk 0:00:14]}  Kg8 {[%clk 0:00:05]} 37. Bg6 {[%clk 0:00:11]}  d4+ {[%clk 0:00:03]} 38. Kxd4 {[%clk 0:00:10]} 1-0


[Site "https://www.chess.com"]

[Event "Titled Tuesday Blitz August 23 Early 2022"]
[White "Jones, Gawain C B"]
[Black "Le, Tuan Minh"]
[WhiteFideId "409561"]
[BlackFideId "12401153"]
[WhiteElo "2657"]
[BlackElo "2530"]
[Result "0-1"]
[Round "05"]
[TimeControl "180+1"]
[Date "2022.08.23"]
[WhiteClock "0:00:03"]
[BlackClock "0:00:16"]

1. g3 {[%clk 0:02:57]}  d5 {[%clk 0:02:58]} 2. Nf3 {[%clk 0:02:57]}  g6 {[%clk 0:02:59]} 3. Bg2 {[%clk 0:02:55]}  Bg7 {[%clk 0:02:59]} 4. O-O {[%clk 0:02:54]}  e5 {[%clk 0:02:57]} 5. d3 {[%clk 0:02:54]}  Ne7 {[%clk 0:02:56]} 6. Nc3 {[%clk 0:02:54]}  O-O {[%clk 0:02:54]} 7. e4 {[%clk 0:02:54]}  d4 {[%clk 0:02:31]} 8. Ne2 {[%clk 0:02:52]}  Nbc6 {[%clk 0:02:31]} 9. c3 {[%clk 0:02:50]}  h6 {[%clk 0:02:31]} 10. cxd4 {[%clk 0:02:48]}  exd4 {[%clk 0:02:31]} 11. h4 {[%clk 0:02:48]}  a5 {[%clk 0:02:21]} 12. Bf4 {[%clk 0:02:47]}  Be6 {[%clk 0:02:20]} 13. a3 {[%clk 0:02:41]}  Qd7 {[%clk 0:02:20]} 14. Rc1 {[%clk 0:02:39]}  Ra6 {[%clk 0:02:18]} 15. Qd2 {[%clk 0:02:36]}  Kh7 {[%clk 0:02:18]} 16. Rc5 {[%clk 0:02:34]}  Rc8 {[%clk 0:02:00]} 17. Rfc1 {[%clk 0:02:32]}  a4 {[%clk 0:02:00]} 18. h5 {[%clk 0:02:28]}  g5 {[%clk 0:01:44]} 19. Bxg5 {[%clk 0:02:28]}  hxg5 {[%clk 0:01:45]} 20. Nxg5+ {[%clk 0:02:28]}  Kg8 {[%clk 0:01:42]} 21. Nxe6 {[%clk 0:02:28]}  Qxe6 {[%clk 0:01:39]} 22. Nf4 {[%clk 0:02:14]}  Qh6 {[%clk 0:01:38]} 23. Qe2 {[%clk 0:02:09]}  Kh8 {[%clk 0:01:33]} 24. e5 {[%clk 0:01:56]}  Rb6 {[%clk 0:01:25]} 25. e6 {[%clk 0:01:45]}  fxe6 {[%clk 0:01:26]} 26. Nxe6 {[%clk 0:01:44]}  Bf6 {[%clk 0:01:26]} 27. Bh3 {[%clk 0:01:32]}  Rg8 {[%clk 0:01:08]} 28. Nxc7 {[%clk 0:01:30]}  Rg5 {[%clk 0:01:08]} 29. Ne6 {[%clk 0:01:24]}  Re5 {[%clk 0:01:07]} 30. Qf3 {[%clk 0:01:02]}  Rxb2 {[%clk 0:01:01]} 31. Nf4 {[%clk 0:00:46]}  Bg5 {[%clk 0:00:44]} 32. Rxe5 {[%clk 0:00:31]}  Nxe5 {[%clk 0:00:45]} 33. Qe4 {[%clk 0:00:29]}  Bxf4 {[%clk 0:00:46]} 34. gxf4 {[%clk 0:00:28]}  N5c6 {[%clk 0:00:46]} 35. Qf3 {[%clk 0:00:22]}  Rb5 {[%clk 0:00:38]} 36. Bg4 {[%clk 0:00:21]}  Qg7 {[%clk 0:00:36]} 37. Kh1 {[%clk 0:00:18]}  Qf6 {[%clk 0:00:36]} 38. Rg1 {[%clk 0:00:16]}  Rd5 {[%clk 0:00:23]} 39. Kg2 {[%clk 0:00:11]}  Rd8 {[%clk 0:00:21]} 40. Kh3 {[%clk 0:00:09]}  Rf8 {[%clk 0:00:22]} 41. Rb1 {[%clk 0:00:05]}  Ne5 {[%clk 0:00:15]} 42. fxe5 {[%clk 0:00:05]}  Qxf3+ {[%clk 0:00:16]} 43. Bxf3 {[%clk 0:00:05]}  Rxf3+ {[%clk 0:00:17]} 44. Kg4 {[%clk 0:00:06]}  Rxd3 {[%clk 0:00:17]} 45. Rxb7 {[%clk 0:00:05]}  Nc6 {[%clk 0:00:15]} 46. f4 {[%clk 0:00:05]}  Rxa3 {[%clk 0:00:15]} 47. Rc7 {[%clk 0:00:05]}  Rc3 {[%clk 0:00:15]} 48. e6 {[%clk 0:00:05]}  Ne5+ {[%clk 0:00:14]} 49. Kf5 {[%clk 0:00:04]}  Rxc7 {[%clk 0:00:15]} 50. Kxe5 {[%clk 0:00:05]}  d3 {[%clk 0:00:16]} 51. f5 {[%clk 0:00:03]}  d2 {[%clk 0:00:16]} 0-1


[Site "https://www.chess.com"]

[Event "Titled Tuesday Blitz August 23 Early 2022"]
[White "Krsnik Cohar, Ivan Vihor"]
[Black "Hambleton, Aman"]
[WhiteFideId "14520044"]
[BlackFideId "2606577"]
[WhiteElo "2414"]
[BlackElo "2538"]
[Result "1-0"]
[Round "05"]
[TimeControl "180+1"]
[Date "2022.08.23"]
[WhiteClock "0:01:21"]
[BlackClock "0:00:01"]

1. e4 {[%clk 0:03:00]}  c5 {[%clk 0:03:00]} 2. Ne2 {[%clk 0:03:01]}  e6 {[%clk 0:02:56]} 3. g3 {[%clk 0:03:01]}  Nc6 {[%clk 0:01:59]} 4. Bg2 {[%clk 0:03:01]}  d5 {[%clk 0:01:31]} 5. O-O {[%clk 0:02:59]}  dxe4 {[%clk 0:01:20]} 6. Nbc3 {[%clk 0:02:58]}  Nf6 {[%clk 0:01:18]} 7. Nxe4 {[%clk 0:02:58]}  Be7 {[%clk 0:01:00]} 8. b3 {[%clk 0:02:57]}  Nxe4 {[%clk 0:00:55]} 9. Bxe4 {[%clk 0:02:57]}  Bf6 {[%clk 0:00:56]} 10. Rb1 {[%clk 0:02:57]}  O-O {[%clk 0:00:50]} 11. Bb2 {[%clk 0:02:51]}  Bxb2 {[%clk 0:00:34]} 12. Rxb2 {[%clk 0:02:51]}  Qd6 {[%clk 0:00:34]} 13. c3 {[%clk 0:02:37]}  e5 {[%clk 0:00:30]} 14. d4 {[%clk 0:02:19]}  cxd4 {[%clk 0:00:19]} 15. cxd4 {[%clk 0:02:17]}  Nxd4 {[%clk 0:00:10]} 16. Nxd4 {[%clk 0:02:16]}  exd4 {[%clk 0:00:05]} 17. Rd2 {[%clk 0:02:14]}  Rd8 {[%clk 0:00:06]} 18. Qf3 {[%clk 0:02:09]}  Be6 {[%clk 0:00:02]} 19. Rfd1 {[%clk 0:02:02]}  g6 {[%clk 0:00:02]} 20. Qf6 {[%clk 0:01:53]}  Rac8 {[%clk 0:00:02]} 21. Rxd4 {[%clk 0:01:49]}  Qxd4 {[%clk 0:00:02]} 22. Rxd4 {[%clk 0:01:48]}  Rxd4 {[%clk 0:00:02]} 23. Qxd4 {[%clk 0:01:47]}  b6 {[%clk 0:00:03]} 24. Kg2 {[%clk 0:01:43]}  h5 {[%clk 0:00:03]} 25. h4 {[%clk 0:01:43]}  Rc5 {[%clk 0:00:02]} 26. Qd6 {[%clk 0:01:36]}  Ra5 {[%clk 0:00:02]} 27. b4 {[%clk 0:01:24]}  Rxa2 {[%clk 0:00:01]} 28. Bxg6 {[%clk 0:01:24]}  Rb2 {[%clk 0:00:01]} 29. Bxh5 {[%clk 0:01:21]} 1-0


[Site "https://www.chess.com"]

[Event "Titled Tuesday Blitz August 23 Early 2022"]
[White "Lamaze, Simon"]
[Black "Harshavardhan G B"]
[WhiteFideId "36069264"]
[BlackFideId "25059009"]
[WhiteElo "2131"]
[BlackElo "1890"]
[Result "1-0"]
[Round "05"]
[TimeControl "180+1"]
[Date "2022.08.23"]
[WhiteClock "0:00:11"]
[BlackClock "0:00:08"]

1. d4 {[%clk 0:03:00]}  Nf6 {[%clk 0:02:57]} 2. c4 {[%clk 0:02:43]}  e6 {[%clk 0:02:52]} 3. g3 {[%clk 0:02:43]}  c5 {[%clk 0:02:51]} 4. d5 {[%clk 0:02:23]}  exd5 {[%clk 0:02:50]} 5. cxd5 {[%clk 0:02:24]}  d6 {[%clk 0:02:50]} 6. Nc3 {[%clk 0:02:24]}  g6 {[%clk 0:02:50]} 7. Bg2 {[%clk 0:02:24]}  Bg7 {[%clk 0:02:50]} 8. Nf3 {[%clk 0:02:25]}  O-O {[%clk 0:02:51]} 9. O-O {[%clk 0:02:25]}  Re8 {[%clk 0:02:52]} 10. Re1 {[%clk 0:02:25]}  a6 {[%clk 0:02:50]} 11. a4 {[%clk 0:02:24]}  Nbd7 {[%clk 0:02:50]} 12. e4 {[%clk 0:02:24]}  Rb8 {[%clk 0:02:46]} 13. Bf4 {[%clk 0:02:04]}  Qc7 {[%clk 0:02:46]} 14. e5 {[%clk 0:02:04]}  dxe5 {[%clk 0:02:45]} 15. d6 {[%clk 0:02:04]}  Qb6 {[%clk 0:02:42]} 16. Nxe5 {[%clk 0:01:58]}  Qxb2 {[%clk 0:02:38]} 17. Rc1 {[%clk 0:01:48]}  Nxe5 {[%clk 0:02:15]} 18. Bxe5 {[%clk 0:01:49]}  Bg4 {[%clk 0:02:15]} 19. Qd3 {[%clk 0:01:18]}  Bf5 {[%clk 0:02:07]} 20. Qd1 {[%clk 0:01:10]}  Ng4 {[%clk 0:01:57]} 21. Re2 {[%clk 0:01:01]}  Qxc1 {[%clk 0:01:17]} 22. Qxc1 {[%clk 0:01:01]}  Bxe5 {[%clk 0:01:11]} 23. Nd5 {[%clk 0:00:46]}  Bd4 {[%clk 0:00:34]} 24. Rxe8+ {[%clk 0:00:45]}  Rxe8 {[%clk 0:00:33]} 25. Ne7+ {[%clk 0:00:46]}  Kh8 {[%clk 0:00:29]} 26. h3 {[%clk 0:00:21]}  Nxf2 {[%clk 0:00:28]} 27. Kh2 {[%clk 0:00:20]}  Bd7 {[%clk 0:00:25]} 28. Bxb7 {[%clk 0:00:19]}  Nd3 {[%clk 0:00:22]} 29. Qf1 {[%clk 0:00:19]}  Nf2 {[%clk 0:00:22]} 30. Bxa6 {[%clk 0:00:19]}  Rb8 {[%clk 0:00:20]} 31. Bb5 {[%clk 0:00:19]}  Bxh3 {[%clk 0:00:17]} 32. Qe2 {[%clk 0:00:18]}  Rd8 {[%clk 0:00:16]} 33. d7 {[%clk 0:00:18]}  Bxd7 {[%clk 0:00:15]} 34. Bxd7 {[%clk 0:00:19]}  Rxd7 {[%clk 0:00:16]} 35. Nc6 {[%clk 0:00:20]}  Kg7 {[%clk 0:00:08]} 36. a5 {[%clk 0:00:18]}  Nd3 {[%clk 0:00:05]} 37. a6 {[%clk 0:00:15]}  c4 {[%clk 0:00:02]} 38. Nxd4 {[%clk 0:00:13]}  Rxd4 {[%clk 0:00:03]} 39. a7 {[%clk 0:00:14]}  Rd8 {[%clk 0:00:04]} 40. Qe7 {[%clk 0:00:14]}  Ra8 {[%clk 0:00:03]} 41. Qb7 {[%clk 0:00:14]}  Rd8 {[%clk 0:00:03]} 42. a8=Q {[%clk 0:00:14]}  Rxa8 {[%clk 0:00:03]} 43. Qxa8 {[%clk 0:00:15]}  c3 {[%clk 0:00:04]} 44. Qc6 {[%clk 0:00:14]}  Ne5 {[%clk 0:00:03]} 45. Qxc3 {[%clk 0:00:14]}  Kf6 {[%clk 0:00:04]} 46. Kg2 {[%clk 0:00:14]}  Ke6 {[%clk 0:00:05]} 47. Kh3 {[%clk 0:00:15]}  h5 {[%clk 0:00:05]} 48. Kh4 {[%clk 0:00:15]}  Kf5 {[%clk 0:00:05]} 49. Qc2+ {[%clk 0:00:14]}  Kf6 {[%clk 0:00:05]} 50. Qb2 {[%clk 0:00:14]}  Kf5 {[%clk 0:00:05]} 51. Qf2+ {[%clk 0:00:14]}  Ke6 {[%clk 0:00:05]} 52. Kg5 {[%clk 0:00:14]}  Ng4 {[%clk 0:00:03]} 53. Qe2+ {[%clk 0:00:13]}  Kd6 {[%clk 0:00:04]} 54. Kf4 {[%clk 0:00:10]}  Kd7 {[%clk 0:00:04]} 55. Qa6 {[%clk 0:00:06]}  Ke7 {[%clk 0:00:04]} 56. Kg5 {[%clk 0:00:07]}  Kd7 {[%clk 0:00:03]} 57. Qb7+ {[%clk 0:00:07]}  Ke6 {[%clk 0:00:03]} 58. Qc8+ {[%clk 0:00:07]}  Ke7 {[%clk 0:00:03]} 59. Qc7+ {[%clk 0:00:08]}  Ke6 {[%clk 0:00:04]} 60. Qd8 {[%clk 0:00:08]}  Ne5 {[%clk 0:00:03]} 61. Qe8+ {[%clk 0:00:08]}  Kd6 {[%clk 0:00:03]} 62. Kf6 {[%clk 0:00:08]}  Ng4+ {[%clk 0:00:01]} 63. Kxf7 {[%clk 0:00:09]}  g5 {[%clk 0:00:02]} 64. Kg6 {[%clk 0:00:07]}  h4 {[%clk 0:00:02]} 65. Kxg5 {[%clk 0:00:07]}  Ne5 {[%clk 0:00:02]} 66. gxh4 {[%clk 0:00:06]}  Nf3+ {[%clk 0:00:03]} 67. Kf4 {[%clk 0:00:06]}  Nxh4 {[%clk 0:00:03]} 68. Qd8+ {[%clk 0:00:05]}  Ke6 {[%clk 0:00:04]} 69. Qxh4 {[%clk 0:00:06]}  Kd5 {[%clk 0:00:04]} 70. Qg5+ {[%clk 0:00:07]}  Kc6 {[%clk 0:00:05]} 71. Qe5 {[%clk 0:00:08]}  Kd7 {[%clk 0:00:05]} 72. Ke4 {[%clk 0:00:09]}  Kc6 {[%clk 0:00:06]} 73. Kd4 {[%clk 0:00:09]}  Kd7 {[%clk 0:00:07]} 74. Kd5 {[%clk 0:00:10]}  Kc8 {[%clk 0:00:07]} 75. Qg7 {[%clk 0:00:10]}  Kb8 {[%clk 0:00:07]} 76. Kc6 {[%clk 0:00:11]}  Ka8 {[%clk 0:00:08]} 77. Qb7# {[%clk 0:00:11]} 1-0


[Site "https://www.chess.com"]

[Event "Titled Tuesday Blitz August 23 Early 2022"]
[White "Levitskiy, Andrey"]
[Black "Belov, Vladimir"]
[WhiteFideId "14132885"]
[BlackFideId "4132394"]
[WhiteElo "2293"]
[BlackElo "2501"]
[Result "1-0"]
[Round "05"]
[TimeControl "180+1"]
[Date "2022.08.23"]
[WhiteClock "0:00:05"]
[BlackClock "0:00:02"]

1. e4 {[%clk 0:03:00]}  c5 {[%clk 0:02:57]} 2. Nf3 {[%clk 0:03:01]}  d6 {[%clk 0:02:56]} 3. d4 {[%clk 0:03:01]}  cxd4 {[%clk 0:02:56]} 4. Nxd4 {[%clk 0:03:02]}  Nf6 {[%clk 0:02:57]} 5. Nc3 {[%clk 0:03:03]}  a6 {[%clk 0:02:57]} 6. h3 {[%clk 0:03:03]}  e5 {[%clk 0:02:57]} 7. Nde2 {[%clk 0:03:03]}  h5 {[%clk 0:02:55]} 8. Bg5 {[%clk 0:03:03]}  Be6 {[%clk 0:02:33]} 9. Bxf6 {[%clk 0:03:03]}  Qxf6 {[%clk 0:02:34]} 10. Nd5 {[%clk 0:03:04]}  Qd8 {[%clk 0:02:35]} 11. Nec3 {[%clk 0:03:03]}  Nd7 {[%clk 0:02:28]} 12. a4 {[%clk 0:03:03]}  Rc8 {[%clk 0:02:23]} 13. a5 {[%clk 0:03:01]}  g6 {[%clk 0:02:18]} 14. Ra3 {[%clk 0:03:00]}  Bg7 {[%clk 0:02:14]} 15. b4 {[%clk 0:02:53]}  O-O {[%clk 0:02:11]} 16. Bd3 {[%clk 0:02:52]}  Qg5 {[%clk 0:02:05]} 17. Ne3 {[%clk 0:02:05]}  f5 {[%clk 0:02:00]} 18. h4 {[%clk 0:01:41]}  Qf6 {[%clk 0:01:57]} 19. Ned5 {[%clk 0:01:26]}  Qf7 {[%clk 0:01:54]} 20. O-O {[%clk 0:01:11]}  Nf6 {[%clk 0:01:50]} 21. Nxf6+ {[%clk 0:00:56]}  Qxf6 {[%clk 0:01:33]} 22. exf5 {[%clk 0:00:52]}  gxf5 {[%clk 0:01:32]} 23. Be2 {[%clk 0:00:36]}  e4 {[%clk 0:01:12]} 24. Nd5 {[%clk 0:00:36]}  Bxd5 {[%clk 0:00:26]} 25. Qxd5+ {[%clk 0:00:36]}  Qf7 {[%clk 0:00:26]} 26. Qxd6 {[%clk 0:00:26]}  Rfd8 {[%clk 0:00:22]} 27. Qf4 {[%clk 0:00:25]}  Rxc2 {[%clk 0:00:17]} 28. Bd1 {[%clk 0:00:24]}  Rb2 {[%clk 0:00:18]} 29. Rg3 {[%clk 0:00:21]}  Kf8 {[%clk 0:00:16]} 30. Rg5 {[%clk 0:00:16]}  Bh6 {[%clk 0:00:14]} 31. Bxh5 {[%clk 0:00:14]}  Bxg5 {[%clk 0:00:12]} 32. Qxg5 {[%clk 0:00:15]}  Qe7 {[%clk 0:00:06]} 33. Qxf5+ {[%clk 0:00:15]}  Kg7 {[%clk 0:00:07]} 34. Qg6+ {[%clk 0:00:11]}  Kh8 {[%clk 0:00:08]} 35. Qh6+ {[%clk 0:00:12]}  Kg8 {[%clk 0:00:08]} 36. Qg6+ {[%clk 0:00:11]}  Kh8 {[%clk 0:00:07]} 37. Rc1 {[%clk 0:00:09]}  e3 {[%clk 0:00:05]} 38. Qh6+ {[%clk 0:00:08]}  Kg8 {[%clk 0:00:04]} 39. fxe3 {[%clk 0:00:05]}  Qg7 {[%clk 0:00:04]} 40. Qe6+ {[%clk 0:00:04]}  Kh8 {[%clk 0:00:04]} 41. Bf3 {[%clk 0:00:04]}  Rf8 {[%clk 0:00:04]} 42. Rc8 {[%clk 0:00:03]}  Rxc8 {[%clk 0:00:04]} 43. Qxc8+ {[%clk 0:00:04]}  Kh7 {[%clk 0:00:04]} 44. Qf5+ {[%clk 0:00:04]}  Kh8 {[%clk 0:00:04]} 45. Qh5+ {[%clk 0:00:05]}  Kg8 {[%clk 0:00:05]} 46. Bd5+ {[%clk 0:00:04]}  Kf8 {[%clk 0:00:05]} 47. Qf5+ {[%clk 0:00:04]}  Ke7 {[%clk 0:00:06]} 48. Qe6+ {[%clk 0:00:04]}  Kd8 {[%clk 0:00:06]} 49. Qb6+ {[%clk 0:00:04]}  Kc8 {[%clk 0:00:05]} 50. Be6+ {[%clk 0:00:03]}  Kb8 {[%clk 0:00:05]} 51. Qd8+ {[%clk 0:00:03]}  Ka7 {[%clk 0:00:06]} 52. Qb6+ {[%clk 0:00:04]}  Kb8 {[%clk 0:00:06]} 53. Qd6+ {[%clk 0:00:04]}  Ka7 {[%clk 0:00:06]} 54. Bd5 {[%clk 0:00:03]}  Rb1+ {[%clk 0:00:03]} 55. Kh2 {[%clk 0:00:04]}  Rb2 {[%clk 0:00:03]} 56. Qb6+ {[%clk 0:00:04]}  Kb8 {[%clk 0:00:03]} 57. Qd6+ {[%clk 0:00:04]}  Ka7 {[%clk 0:00:02]} 58. h5 {[%clk 0:00:05]} 1-0


[Site "https://www.chess.com"]

[Event "Titled Tuesday Blitz August 23 Early 2022"]
[White "Livaic, Leon"]
[Black "Puranik, Abhimanyu"]
[WhiteFideId "14531534"]
[BlackFideId "5061245"]
[WhiteElo "2540"]
[BlackElo "2520"]
[Result "0-1"]
[Round "05"]
[TimeControl "180+1"]
[Date "2022.08.23"]
[WhiteClock "0:00:01"]
[BlackClock "0:01:04"]

1. d4 {[%clk 0:03:00]}  Nf6 {[%clk 0:02:58]} 2. c4 {[%clk 0:03:01]}  c5 {[%clk 0:02:58]} 3. d5 {[%clk 0:03:00]}  b5 {[%clk 0:02:59]} 4. cxb5 {[%clk 0:03:00]}  a6 {[%clk 0:02:59]} 5. bxa6 {[%clk 0:03:01]}  g6 {[%clk 0:02:59]} 6. Nc3 {[%clk 0:03:01]}  Bg7 {[%clk 0:02:59]} 7. e4 {[%clk 0:03:01]}  O-O {[%clk 0:02:58]} 8. Nf3 {[%clk 0:02:59]}  Qa5 {[%clk 0:02:56]} 9. a7 {[%clk 0:03:00]}  Nxe4 {[%clk 0:02:43]} 10. axb8=Q {[%clk 0:02:50]}  Rxb8 {[%clk 0:02:43]} 11. Bd2 {[%clk 0:01:55]}  Nxd2 {[%clk 0:02:42]} 12. Nxd2 {[%clk 0:01:56]}  Rxb2 {[%clk 0:02:41]} 13. Na4 {[%clk 0:01:06]}  Rb4 {[%clk 0:02:30]} 14. Rc1 {[%clk 0:00:44]}  Rxa4 {[%clk 0:02:09]} 15. Bc4 {[%clk 0:00:44]}  Bh6 {[%clk 0:01:59]} 16. Rc2 {[%clk 0:00:39]}  Ba6 {[%clk 0:01:56]} 17. O-O {[%clk 0:00:35]}  d6 {[%clk 0:01:48]} 18. Bxa6 {[%clk 0:00:32]}  Qxa6 {[%clk 0:01:48]} 19. Nf3 {[%clk 0:00:10]}  Rxa2 {[%clk 0:01:44]} 20. Rxa2 {[%clk 0:00:11]}  Qxa2 {[%clk 0:01:44]} 21. Re1 {[%clk 0:00:12]}  Re8 {[%clk 0:01:41]} 22. Re2 {[%clk 0:00:09]}  Qc4 {[%clk 0:01:38]} 23. Rc2 {[%clk 0:00:08]}  Qb3 {[%clk 0:01:37]} 24. h4 {[%clk 0:00:08]}  Rb8 {[%clk 0:01:32]} 25. Qe2 {[%clk 0:00:08]}  Qxd5 {[%clk 0:01:21]} 26. Qxe7 {[%clk 0:00:08]}  Rb1+ {[%clk 0:01:05]} 27. Kh2 {[%clk 0:00:07]}  Bf4+ {[%clk 0:01:04]} 28. g3 {[%clk 0:00:01]}  Qxf3 {[%clk 0:01:04]} 0-1


[Site "https://www.chess.com"]